[Event "Titled Tuesday Blitz June 8 2021"]
[White "Quintiliano Pinto, Renato R."]
[Black "Kukhmazov, Arsen"]
[WhiteFideId "2117568"]
[BlackFideId "24108260"]
[WhiteElo "2439"]
[BlackElo "2453"]
[Result "0-1"]
[Round "09"]
[TimeControl "180+1"]
[Date "2021.06.08"]
[WhiteClock "0:00:09"]
[BlackClock "0:00:06"]

1. Nf3 {[%clk 0:03:00]}  d5 {[%clk 0:02:57]} 2. e3 {[%clk 0:02:56]}  c6 {[%clk 0:02:56]} 3. c4 {[%clk 0:02:56]}  Nf6 {[%clk 0:02:56]} 4. Nc3 {[%clk 0:02:55]}  e6 {[%clk 0:02:56]} 5. d4 {[%clk 0:02:54]}  Nbd7 {[%clk 0:02:56]} 6. Be2 {[%clk 0:02:53]}  dxc4 {[%clk 0:02:55]} 7. a4 {[%clk 0:02:53]}  c5 {[%clk 0:02:19]} 8. O-O {[%clk 0:02:51]}  cxd4 {[%clk 0:02:19]} 9. exd4 {[%clk 0:02:51]}  Be7 {[%clk 0:02:18]} 10. Bxc4 {[%clk 0:02:49]}  O-O {[%clk 0:02:19]} 11. a5 {[%clk 0:02:48]}  Nb8 {[%clk 0:02:10]} 12. d5 {[%clk 0:02:23]}  exd5 {[%clk 0:02:09]} 13. Nxd5 {[%clk 0:02:24]}  Nxd5 {[%clk 0:02:08]} 14. Bxd5 {[%clk 0:02:25]}  Nc6 {[%clk 0:02:05]} 15. a6 {[%clk 0:02:24]}  Qc7 {[%clk 0:02:04]} 16. Qc2 {[%clk 0:02:14]}  Bf6 {[%clk 0:01:53]} 17. Bg5 {[%clk 0:01:14]}  Rb8 {[%clk 0:00:36]} 18. Rfd1 {[%clk 0:00:56]}  Qe7 {[%clk 0:00:07]} 19. Bf4 {[%clk 0:00:49]}  Ra8 {[%clk 0:00:06]} 20. Bd6 {[%clk 0:00:47]}  Nb4 {[%clk 0:00:02]} 21. Qc5 {[%clk 0:00:42]}  Nxd5 {[%clk 0:00:03]} 22. Bxe7 {[%clk 0:00:42]}  Nxe7 {[%clk 0:00:04]} 23. Re1 {[%clk 0:00:36]}  Ng6 {[%clk 0:00:02]} 24. Qd5 {[%clk 0:00:29]}  Rb8 {[%clk 0:00:02]} 25. Nd4 {[%clk 0:00:20]}  bxa6 {[%clk 0:00:02]} 26. Nc6 {[%clk 0:00:19]}  Rb7 {[%clk 0:00:02]} 27. Rac1 {[%clk 0:00:18]}  Rd7 {[%clk 0:00:03]} 28. Qa5 {[%clk 0:00:17]}  Bb7 {[%clk 0:00:03]} 29. Qa4 {[%clk 0:00:15]}  Rd6 {[%clk 0:00:02]} 30. Na5 {[%clk 0:00:15]}  Ba8 {[%clk 0:00:02]} 31. Rcd1 {[%clk 0:00:15]}  Rb6 {[%clk 0:00:02]} 32. Nc4 {[%clk 0:00:14]}  Rb5 {[%clk 0:00:02]} 33. Qxa6 {[%clk 0:00:15]}  Rb4 {[%clk 0:00:03]} 34. Qxa7 {[%clk 0:00:15]}  Rxc4 {[%clk 0:00:03]} 35. Ra1 {[%clk 0:00:14]}  Rcc8 {[%clk 0:00:03]} 36. Qa6 {[%clk 0:00:14]}  Bxb2 {[%clk 0:00:03]} 37. Rab1 {[%clk 0:00:14]}  Bf6 {[%clk 0:00:04]} 38. Rec1 {[%clk 0:00:14]}  Rxc1+ {[%clk 0:00:03]} 39. Rxc1 {[%clk 0:00:15]}  Bd5 {[%clk 0:00:03]} 40. Rc8 {[%clk 0:00:15]}  Be6 {[%clk 0:00:03]} 41. Rxf8+ {[%clk 0:00:15]}  Nxf8 {[%clk 0:00:04]} 42. g3 {[%clk 0:00:15]}  g6 {[%clk 0:00:05]} 43. Qa8 {[%clk 0:00:15]}  Kg7 {[%clk 0:00:06]} 44. Qa4 {[%clk 0:00:15]}  Nd7 {[%clk 0:00:06]} 45. Qa7 {[%clk 0:00:15]}  Ne5 {[%clk 0:00:06]} 46. f4 {[%clk 0:00:15]}  Nf3+ {[%clk 0:00:06]} 47. Kg2 {[%clk 0:00:15]}  Nd4 {[%clk 0:00:04]} 48. Qa4 {[%clk 0:00:13]}  Bd5+ {[%clk 0:00:04]} 49. Kh3 {[%clk 0:00:14]}  h5 {[%clk 0:00:03]} 50. g4 {[%clk 0:00:14]}  Be6 {[%clk 0:00:03]} 51. f5 {[%clk 0:00:14]}  gxf5 {[%clk 0:00:04]} 52. gxh5 {[%clk 0:00:14]}  f4+ {[%clk 0:00:04]} 53. Kg2 {[%clk 0:00:14]}  f3+ {[%clk 0:00:05]} 54. Kf2 {[%clk 0:00:14]}  Bg4 {[%clk 0:00:04]} 55. Qb4 {[%clk 0:00:12]}  Bxh5 {[%clk 0:00:04]} 56. Qd6 {[%clk 0:00:09]}  Bg6 {[%clk 0:00:04]} 57. Qf4 {[%clk 0:00:09]}  Bh5 {[%clk 0:00:02]} 58. h4 {[%clk 0:00:09]}  Bg6 {[%clk 0:00:03]} 59. Qg4 {[%clk 0:00:09]}  Kh7 {[%clk 0:00:03]} 60. h5 {[%clk 0:00:09]}  Bf5 {[%clk 0:00:04]} 61. Qf4 {[%clk 0:00:09]}  Kg7 {[%clk 0:00:04]} 62. Kf1 {[%clk 0:00:09]}  Kh7 {[%clk 0:00:04]} 63. Kf2 {[%clk 0:00:10]}  Bg7 {[%clk 0:00:05]} 64. Kf1 {[%clk 0:00:10]}  Bd3+ {[%clk 0:00:05]} 65. Kf2 {[%clk 0:00:10]}  Be2 {[%clk 0:00:06]} 66. Qxf7 {[%clk 0:00:10]}  Bd3 {[%clk 0:00:04]} 67. Qf4 {[%clk 0:00:10]}  Bf5 {[%clk 0:00:04]} 68. h6 {[%clk 0:00:10]}  Bf6 {[%clk 0:00:04]} 69. Qc7+ {[%clk 0:00:10]}  Kxh6 {[%clk 0:00:05]} 70. Qf4+ {[%clk 0:00:10]}  Kg6 {[%clk 0:00:06]} 71. Qd6 {[%clk 0:00:10]}  Ne6 {[%clk 0:00:06]} 72. Qg3+ {[%clk 0:00:10]}  Ng5 {[%clk 0:00:06]} 73. Qd6 {[%clk 0:00:09]}  Ne4+ {[%clk 0:00:06]} 0-1


[Site "https://www.chess.com"]

[Event "Titled Tuesday Blitz June 8 2021"]
[White "Sarana, Alexey"]
[Black "Kazakouski, Valery"]
[WhiteFideId "24133795"]
[BlackFideId "13507443"]
[WhiteElo "2629"]
[BlackElo "2546"]
[Result "1-0"]
[Round "09"]
[TimeControl "180+1"]
[Date "2021.06.08"]
[WhiteClock "0:00:04"]
[BlackClock "0:00:02"]

1. e4 {[%clk 0:03:00]}  c5 {[%clk 0:02:59]} 2. Nf3 {[%clk 0:02:59]}  a6 {[%clk 0:02:59]} 3. c4 {[%clk 0:02:55]}  Nc6 {[%clk 0:02:59]} 4. d4 {[%clk 0:02:55]}  cxd4 {[%clk 0:03:00]} 5. Nxd4 {[%clk 0:02:55]}  e5 {[%clk 0:03:00]} 6. Nc2 {[%clk 0:02:53]}  Bc5 {[%clk 0:03:00]} 7. Be2 {[%clk 0:02:53]}  Nf6 {[%clk 0:03:00]} 8. Nc3 {[%clk 0:02:53]}  d6 {[%clk 0:03:01]} 9. Be3 {[%clk 0:02:53]}  Bxe3 {[%clk 0:03:00]} 10. Nxe3 {[%clk 0:02:53]}  Be6 {[%clk 0:03:01]} 11. O-O {[%clk 0:02:52]}  O-O {[%clk 0:03:01]} 12. Ncd5 {[%clk 0:02:50]}  Bxd5 {[%clk 0:02:57]} 13. cxd5 {[%clk 0:02:47]}  Nb8 {[%clk 0:02:52]} 14. f3 {[%clk 0:02:43]}  Qb6 {[%clk 0:02:51]} 15. Qd2 {[%clk 0:02:43]}  Nbd7 {[%clk 0:02:50]} 16. Kh1 {[%clk 0:02:42]}  Rfc8 {[%clk 0:02:44]} 17. Rfc1 {[%clk 0:02:42]}  Ne8 {[%clk 0:02:36]} 18. Nf5 {[%clk 0:02:39]}  Kf8 {[%clk 0:02:31]} 19. a3 {[%clk 0:02:27]}  Nc5 {[%clk 0:02:20]} 20. Bd1 {[%clk 0:02:25]}  a5 {[%clk 0:01:50]} 21. Rc3 {[%clk 0:02:19]}  a4 {[%clk 0:01:41]} 22. Rac1 {[%clk 0:02:18]}  Qd8 {[%clk 0:01:38]} 23. Rc4 {[%clk 0:02:14]}  g6 {[%clk 0:01:31]} 24. Ne3 {[%clk 0:02:03]}  b5 {[%clk 0:01:18]} 25. R4c3 {[%clk 0:02:00]}  Qb6 {[%clk 0:01:12]} 26. Ng4 {[%clk 0:01:41]}  Rc7 {[%clk 0:01:01]} 27. Qh6+ {[%clk 0:01:37]}  Kg8 {[%clk 0:01:01]} 28. h4 {[%clk 0:01:38]}  Rac8 {[%clk 0:00:54]} 29. h5 {[%clk 0:01:38]}  Nd7 {[%clk 0:00:52]} 30. hxg6 {[%clk 0:01:14]}  hxg6 {[%clk 0:00:52]} 31. Be2 {[%clk 0:01:13]}  Rxc3 {[%clk 0:00:52]} 32. bxc3 {[%clk 0:01:12]}  Qc5 {[%clk 0:00:41]} 33. Rb1 {[%clk 0:01:11]}  Rb8 {[%clk 0:00:33]} 34. Qc1 {[%clk 0:01:04]}  Nef6 {[%clk 0:00:29]} 35. Nxf6+ {[%clk 0:00:38]}  Nxf6 {[%clk 0:00:30]} 36. g3 {[%clk 0:00:38]}  Qf2 {[%clk 0:00:26]} 37. Qe1 {[%clk 0:00:39]}  Qc5 {[%clk 0:00:24]} 38. Qc1 {[%clk 0:00:36]}  Qf2 {[%clk 0:00:15]} 39. Qe1 {[%clk 0:00:36]}  Qc5 {[%clk 0:00:15]} 40. Rb4 {[%clk 0:00:33]}  Kg7 {[%clk 0:00:13]} 41. Kg2 {[%clk 0:00:33]}  Qe3 {[%clk 0:00:11]} 42. c4 {[%clk 0:00:25]}  Rh8 {[%clk 0:00:10]} 43. cxb5 {[%clk 0:00:20]}  Nh5 {[%clk 0:00:11]} 44. b6 {[%clk 0:00:09]}  Nxg3 {[%clk 0:00:11]} 45. Kxg3 {[%clk 0:00:08]}  Qf4+ {[%clk 0:00:11]} 46. Kf2 {[%clk 0:00:07]}  Rh2+ {[%clk 0:00:08]} 47. Kg1 {[%clk 0:00:07]}  Rh3 {[%clk 0:00:07]} 48. Qf2 {[%clk 0:00:06]}  Qg5+ {[%clk 0:00:05]} 49. Qg2 {[%clk 0:00:05]}  Rg3 {[%clk 0:00:05]} 50. Qxg3 {[%clk 0:00:05]}  Qxg3+ {[%clk 0:00:06]} 51. Kf1 {[%clk 0:00:06]}  Qh3+ {[%clk 0:00:06]} 52. Kf2 {[%clk 0:00:07]}  Qh4+ {[%clk 0:00:07]} 53. Ke3 {[%clk 0:00:07]}  Qg5+ {[%clk 0:00:07]} 54. Kd3 {[%clk 0:00:08]}  Qc1 {[%clk 0:00:06]} 55. b7 {[%clk 0:00:08]}  Qxa3+ {[%clk 0:00:06]} 56. Kc4 {[%clk 0:00:08]}  Qc1+ {[%clk 0:00:06]} 57. Kb5 {[%clk 0:00:06]}  Qc7 {[%clk 0:00:06]} 58. Kxa4 {[%clk 0:00:06]}  Qb8 {[%clk 0:00:06]} 59. Ba6 {[%clk 0:00:07]}  f5 {[%clk 0:00:04]} 60. Ka5 {[%clk 0:00:03]}  fxe4 {[%clk 0:00:03]} 61. Rxe4 {[%clk 0:00:04]}  Qd8+ {[%clk 0:00:03]} 62. Kb5 {[%clk 0:00:02]}  Qd7+ {[%clk 0:00:03]} 63. Kb6 {[%clk 0:00:03]}  Qd8+ {[%clk 0:00:02]} 64. Kc6 {[%clk 0:00:03]}  Qb8 {[%clk 0:00:02]} 65. Rb4 {[%clk 0:00:03]}  Kf7 {[%clk 0:00:01]} 66. Rc4 {[%clk 0:00:03]}  Ke7 {[%clk 0:00:01]} 67. Kb5 {[%clk 0:00:04]}  Qe8+ {[%clk 0:00:01]} 68. Kb6 {[%clk 0:00:04]}  Qd8+ {[%clk 0:00:02]} 69. Rc7+ {[%clk 0:00:04]}  Kf6 {[%clk 0:00:01]} 70. Kc6 {[%clk 0:00:05]}  Qe8+ {[%clk 0:00:01]} 71. Kxd6 {[%clk 0:00:04]}  Qb8 {[%clk 0:00:02]} 72. Kc6 {[%clk 0:00:04]}  e4 {[%clk 0:00:02]} 73. fxe4 {[%clk 0:00:04]}  Ke5 {[%clk 0:00:03]} 74. Rc8 {[%clk 0:00:04]}  Qd6+ {[%clk 0:00:02]} 75. Kb5 {[%clk 0:00:05]}  Qd7+ {[%clk 0:00:03]} 76. Ka5 {[%clk 0:00:04]}  Qd6 {[%clk 0:00:02]} 77. b8=Q {[%clk 0:00:04]} 1-0


[Site "https://www.chess.com"]

[Event "Titled Tuesday Blitz June 8 2021"]
[White "Svane, Rasmus"]
[Black "Vignesh, N R"]
[WhiteFideId "4657101"]
[BlackFideId "25012215"]
[WhiteElo "2669"]
[BlackElo "2401"]
[Result "1-0"]
[Round "09"]
[TimeControl "180+1"]
[Date "2021.06.08"]
[WhiteClock "0:00:13"]
[BlackClock "0:00:26"]

1. Nf3 {[%clk 0:03:00]}  Nf6 {[%clk 0:02:59]} 2. g3 {[%clk 0:03:00]}  b6 {[%clk 0:02:59]} 3. Bg2 {[%clk 0:02:59]}  Bb7 {[%clk 0:02:59]} 4. O-O {[%clk 0:03:00]}  c5 {[%clk 0:02:59]} 5. c4 {[%clk 0:03:00]}  e6 {[%clk 0:02:59]} 6. Nc3 {[%clk 0:03:00]}  Be7 {[%clk 0:02:59]} 7. d4 {[%clk 0:03:00]}  cxd4 {[%clk 0:02:59]} 8. Qxd4 {[%clk 0:03:01]}  O-O {[%clk 0:02:59]} 9. Rd1 {[%clk 0:03:00]}  Nc6 {[%clk 0:02:57]} 10. Qf4 {[%clk 0:03:00]}  Qb8 {[%clk 0:02:54]} 11. b3 {[%clk 0:03:00]}  Rd8 {[%clk 0:02:52]} 12. Qxb8 {[%clk 0:02:59]}  Raxb8 {[%clk 0:02:52]} 13. Bf4 {[%clk 0:03:00]}  Rbc8 {[%clk 0:02:49]} 14. Bd6 {[%clk 0:02:36]}  Bxd6 {[%clk 0:02:49]} 15. Rxd6 {[%clk 0:02:37]}  Ne8 {[%clk 0:02:48]} 16. Rd2 {[%clk 0:02:37]}  Ne7 {[%clk 0:02:42]} 17. Nb5 {[%clk 0:02:31]}  a6 {[%clk 0:02:26]} 18. Nd6 {[%clk 0:02:31]}  Nxd6 {[%clk 0:02:26]} 19. Rxd6 {[%clk 0:02:32]}  Rc6 {[%clk 0:02:26]} 20. Rad1 {[%clk 0:02:25]}  Rxd6 {[%clk 0:02:26]} 21. Rxd6 {[%clk 0:02:26]}  Nc8 {[%clk 0:02:26]} 22. Rd1 {[%clk 0:02:11]}  Kf8 {[%clk 0:02:26]} 23. Ne5 {[%clk 0:02:04]}  Bxg2 {[%clk 0:02:25]} 24. Kxg2 {[%clk 0:02:05]}  Ke7 {[%clk 0:02:21]} 25. a4 {[%clk 0:01:53]}  a5 {[%clk 0:02:16]} 26. e4 {[%clk 0:01:22]}  f6 {[%clk 0:02:14]} 27. Nf3 {[%clk 0:01:15]}  Nd6 {[%clk 0:02:12]} 28. Re1 {[%clk 0:01:07]}  Nb7 {[%clk 0:02:12]} 29. Nd4 {[%clk 0:01:07]}  Nc5 {[%clk 0:02:12]} 30. Re3 {[%clk 0:01:04]}  g6 {[%clk 0:02:09]} 31. f4 {[%clk 0:00:56]}  e5 {[%clk 0:02:04]} 32. Nb5 {[%clk 0:00:56]}  Rc8 {[%clk 0:01:49]} 33. Nc3 {[%clk 0:00:56]}  Rc6 {[%clk 0:01:46]} 34. Nd5+ {[%clk 0:00:56]}  Ke8 {[%clk 0:01:38]} 35. Kf3 {[%clk 0:00:53]}  Kd8 {[%clk 0:01:33]} 36. h4 {[%clk 0:00:47]}  Ne6 {[%clk 0:01:32]} 37. Rd3 {[%clk 0:00:46]}  Nc7 {[%clk 0:01:29]} 38. Nxc7 {[%clk 0:00:39]}  Kxc7 {[%clk 0:01:28]} 39. Rd5 {[%clk 0:00:34]}  Rc5 {[%clk 0:01:21]} 40. Rxc5+ {[%clk 0:00:30]}  bxc5 {[%clk 0:01:20]} 41. fxe5 {[%clk 0:00:31]}  d6 {[%clk 0:00:46]} 42. exf6 {[%clk 0:00:25]}  Kd7 {[%clk 0:00:45]} 43. g4 {[%clk 0:00:19]}  h6 {[%clk 0:00:40]} 44. g5 {[%clk 0:00:19]}  h5 {[%clk 0:00:36]} 45. Kg3 {[%clk 0:00:19]}  Ke8 {[%clk 0:00:26]} 46. Kf4 {[%clk 0:00:18]}  Kd7 {[%clk 0:00:25]} 47. e5 {[%clk 0:00:18]}  Ke6 {[%clk 0:00:25]} 48. exd6 {[%clk 0:00:18]}  Kxd6 {[%clk 0:00:26]} 49. Ke4 {[%clk 0:00:18]}  Ke6 {[%clk 0:00:26]} 50. f7 {[%clk 0:00:12]}  Kxf7 {[%clk 0:00:26]} 51. Kd5 {[%clk 0:00:13]} 1-0


[Site "https://www.chess.com"]

[Event "Titled Tuesday Blitz June 8 2021"]
[White "Svidler, Peter"]
[Black "Sanal, Vahap"]
[WhiteFideId "4102142"]
[BlackFideId "6300545"]
[WhiteElo "2754"]
[BlackElo "2507"]
[Result "1-0"]
[Round "09"]
[TimeControl "180+1"]
[Date "2021.06.08"]
[WhiteClock "0:00:12"]
[BlackClock "0:00:01"]

1. e4 {[%clk 0:03:00]}  e5 {[%clk 0:02:59]} 2. Nf3 {[%clk 0:03:00]}  Nc6 {[%clk 0:02:59]} 3. Bb5 {[%clk 0:03:00]}  Nf6 {[%clk 0:03:00]} 4. d3 {[%clk 0:02:59]}  Bc5 {[%clk 0:03:00]} 5. c3 {[%clk 0:02:59]}  O-O {[%clk 0:02:59]} 6. O-O {[%clk 0:02:59]}  d5 {[%clk 0:02:59]} 7. Qe2 {[%clk 0:02:57]}  dxe4 {[%clk 0:02:55]} 8. dxe4 {[%clk 0:02:56]}  Qe7 {[%clk 0:02:55]} 9. Nbd2 {[%clk 0:02:54]}  Bg4 {[%clk 0:02:33]} 10. h3 {[%clk 0:02:45]}  Bd7 {[%clk 0:02:30]} 11. b4 {[%clk 0:02:39]}  Bb6 {[%clk 0:02:25]} 12. Nc4 {[%clk 0:02:30]}  Nd4 {[%clk 0:02:03]} 13. cxd4 {[%clk 0:02:30]}  Bxb5 {[%clk 0:02:01]} 14. dxe5 {[%clk 0:02:30]}  Nd7 {[%clk 0:01:52]} 15. Bb2 {[%clk 0:02:18]}  Qxb4 {[%clk 0:01:47]} 16. Rfc1 {[%clk 0:02:03]}  Rfe8 {[%clk 0:01:38]} 17. a4 {[%clk 0:01:58]}  Ba6 {[%clk 0:01:37]} 18. Qd2 {[%clk 0:01:34]}  Qxd2 {[%clk 0:01:33]} 19. Nfxd2 {[%clk 0:01:34]}  Bc5 {[%clk 0:01:27]} 20. Nb3 {[%clk 0:01:27]}  Bf8 {[%clk 0:01:23]} 21. f4 {[%clk 0:01:22]}  Rad8 {[%clk 0:01:19]} 22. Ne3 {[%clk 0:01:17]}  Bd3 {[%clk 0:01:11]} 23. Rxc7 {[%clk 0:01:15]}  Bxe4 {[%clk 0:01:11]} 24. a5 {[%clk 0:00:59]}  Nb8 {[%clk 0:01:06]} 25. Rac1 {[%clk 0:00:47]}  Rd3 {[%clk 0:00:47]} 26. R1c3 {[%clk 0:00:46]}  Red8 {[%clk 0:00:46]} 27. Kf2 {[%clk 0:00:39]}  Nc6 {[%clk 0:00:38]} 28. a6 {[%clk 0:00:32]}  bxa6 {[%clk 0:00:31]} 29. Nc4 {[%clk 0:00:20]}  Rxc3 {[%clk 0:00:23]} 30. Bxc3 {[%clk 0:00:20]}  Rd3 {[%clk 0:00:23]} 31. Ncd2 {[%clk 0:00:18]}  Rxc3 {[%clk 0:00:18]} 32. Nxe4 {[%clk 0:00:18]}  Rxb3 {[%clk 0:00:19]} 33. Rxc6 {[%clk 0:00:17]}  a5 {[%clk 0:00:19]} 34. Ra6 {[%clk 0:00:18]}  Rb4 {[%clk 0:00:19]} 35. Kf3 {[%clk 0:00:17]}  a4 {[%clk 0:00:19]} 36. Rxa7 {[%clk 0:00:18]}  a3 {[%clk 0:00:12]} 37. Nd6 {[%clk 0:00:17]}  Rb3+ {[%clk 0:00:13]} 38. Ke4 {[%clk 0:00:17]}  h5 {[%clk 0:00:07]} 39. Nxf7 {[%clk 0:00:17]}  a2 {[%clk 0:00:05]} 40. Nd6 {[%clk 0:00:17]}  Rb2 {[%clk 0:00:05]} 41. g4 {[%clk 0:00:17]}  h4 {[%clk 0:00:06]} 42. Kf5 {[%clk 0:00:17]}  Rf2 {[%clk 0:00:04]} 43. Ne4 {[%clk 0:00:16]}  Rc2 {[%clk 0:00:02]} 44. Ra8 {[%clk 0:00:16]}  Kh7 {[%clk 0:00:01]} 45. Ng5+ {[%clk 0:00:16]}  Kh6 {[%clk 0:00:01]} 46. Rxf8 {[%clk 0:00:15]}  g6+ {[%clk 0:00:02]} 47. Kf6 {[%clk 0:00:15]}  Rc6+ {[%clk 0:00:02]} 48. Ne6 {[%clk 0:00:15]}  Rxe6+ {[%clk 0:00:02]} 49. Kxe6 {[%clk 0:00:15]}  a1=Q {[%clk 0:00:02]} 50. Kf6 {[%clk 0:00:14]}  Qa6+ {[%clk 0:00:02]} 51. e6 {[%clk 0:00:14]}  Qa1+ {[%clk 0:00:03]} 52. Kf7 {[%clk 0:00:14]}  Qg7+ {[%clk 0:00:03]} 53. Ke8 {[%clk 0:00:14]}  Qc7 {[%clk 0:00:03]} 54. g5+ {[%clk 0:00:12]}  Kg7 {[%clk 0:00:01]} 55. Rf7+ {[%clk 0:00:12]} 1-0


[Site "https://www.chess.com"]

[Event "Titled Tuesday Blitz June 8 2021"]
[White "Terry, Renato"]
[Black "Abdusattorov, Nodirbek"]
[WhiteFideId "3803457"]
[BlackFideId "14204118"]
[WhiteElo "2581"]
[BlackElo "2662"]
[Result "0-1"]
[Round "09"]
[TimeControl "180+1"]
[Date "2021.06.08"]
[WhiteClock "0:00:02"]
[BlackClock "0:00:18"]

1. d4 {[%clk 0:03:00]}  Nf6 {[%clk 0:02:59]} 2. Bg5 {[%clk 0:03:00]}  c5 {[%clk 0:02:55]} 3. Bxf6 {[%clk 0:02:59]}  gxf6 {[%clk 0:02:54]} 4. d5 {[%clk 0:03:00]}  f5 {[%clk 0:02:55]} 5. c4 {[%clk 0:02:59]}  Bg7 {[%clk 0:02:54]} 6. Nc3 {[%clk 0:02:59]}  d6 {[%clk 0:02:54]} 7. e3 {[%clk 0:02:58]}  Nd7 {[%clk 0:02:52]} 8. Qc2 {[%clk 0:02:57]}  Ne5 {[%clk 0:02:51]} 9. Nh3 {[%clk 0:02:52]}  Bd7 {[%clk 0:02:49]} 10. Nf4 {[%clk 0:02:52]}  Qa5 {[%clk 0:02:40]} 11. Nh5 {[%clk 0:02:49]}  Bh6 {[%clk 0:02:38]} 12. Be2 {[%clk 0:02:45]}  a6 {[%clk 0:02:30]} 13. a4 {[%clk 0:02:23]}  b5 {[%clk 0:02:27]} 14. b3 {[%clk 0:01:17]}  bxc4 {[%clk 0:02:06]} 15. bxc4 {[%clk 0:01:17]}  Rb8 {[%clk 0:02:00]} 16. O-O {[%clk 0:01:16]}  O-O {[%clk 0:02:00]} 17. f4 {[%clk 0:01:09]}  Ng6 {[%clk 0:01:56]} 18. Bd3 {[%clk 0:01:07]}  Bg7 {[%clk 0:01:51]} 19. Nxg7 {[%clk 0:01:02]}  Kxg7 {[%clk 0:01:52]} 20. Ne2 {[%clk 0:01:02]}  e6 {[%clk 0:01:51]} 21. Ng3 {[%clk 0:00:48]}  Kh8 {[%clk 0:01:49]} 22. Rfb1 {[%clk 0:00:37]}  Rbe8 {[%clk 0:01:17]} 23. Qb2+ {[%clk 0:00:33]}  f6 {[%clk 0:01:14]} 24. dxe6 {[%clk 0:00:27]}  Bxe6 {[%clk 0:01:15]} 25. Bxf5 {[%clk 0:00:22]}  Bxc4 {[%clk 0:01:08]} 26. Ne4 {[%clk 0:00:10]}  Qd8 {[%clk 0:01:02]} 27. Rd1 {[%clk 0:00:09]}  d5 {[%clk 0:01:02]} 28. Nxc5 {[%clk 0:00:06]}  Qe7 {[%clk 0:00:58]} 29. Ne6 {[%clk 0:00:05]}  Rg8 {[%clk 0:00:59]} 30. Kh1 {[%clk 0:00:03]}  Nh4 {[%clk 0:00:59]} 31. Bh3 {[%clk 0:00:03]}  Nxg2 {[%clk 0:00:58]} 32. Qd4 {[%clk 0:00:03]}  Be2 {[%clk 0:00:52]} 33. Rg1 {[%clk 0:00:02]}  Nh4 {[%clk 0:00:51]} 34. Rg3 {[%clk 0:00:02]}  Bf3+ {[%clk 0:00:50]} 35. Kg1 {[%clk 0:00:02]}  Be4 {[%clk 0:00:48]} 36. Kf2 {[%clk 0:00:02]}  Nf5 {[%clk 0:00:49]} 37. Bxf5 {[%clk 0:00:02]}  Bxf5 {[%clk 0:00:49]} 38. Nc5 {[%clk 0:00:02]}  Qf7 {[%clk 0:00:42]} 39. Rag1 {[%clk 0:00:01]}  Rxg3 {[%clk 0:00:37]} 40. Rxg3 {[%clk 0:00:02]}  Rf8 {[%clk 0:00:35]} 41. Rg1 {[%clk 0:00:02]}  Qh5 {[%clk 0:00:34]} 42. Rg2 {[%clk 0:00:02]}  Bg6 {[%clk 0:00:28]} 43. Kg1 {[%clk 0:00:01]}  Qf5 {[%clk 0:00:25]} 44. Qd2 {[%clk 0:00:01]}  Rb8 {[%clk 0:00:25]} 45. Kf2 {[%clk 0:00:01]}  Qb1 {[%clk 0:00:21]} 46. Qd4 {[%clk 0:00:02]}  Rb2+ {[%clk 0:00:20]} 47. Kg3 {[%clk 0:00:02]}  Qe1+ {[%clk 0:00:21]} 48. Kh3 {[%clk 0:00:02]}  Bf5+ {[%clk 0:00:20]} 49. Rg4 {[%clk 0:00:02]}  Qf1+ {[%clk 0:00:19]} 50. Kh4 {[%clk 0:00:02]}  Rxh2+ {[%clk 0:00:18]} 0-1


[Site "https://www.chess.com"]

[Event "Titled Tuesday Blitz June 8 2021"]
[White "Yanchenko, Roman"]
[Black "Vokhidov, Shamsiddin"]
[WhiteFideId "4137329"]
[BlackFideId "14204223"]
[WhiteElo "2514"]
[BlackElo "2572"]
[Result "1-0"]
[Round "09"]
[TimeControl "180+1"]
[Date "2021.06.08"]
[WhiteClock "0:00:18"]
[BlackClock "0:00:14"]

1. d4 {[%clk 0:03:00]}  Nf6 {[%clk 0:03:00]} 2. c4 {[%clk 0:03:00]}  e6 {[%clk 0:03:00]} 3. Nf3 {[%clk 0:02:59]}  b6 {[%clk 0:03:01]} 4. g3 {[%clk 0:02:59]}  Bb7 {[%clk 0:03:00]} 5. Bg2 {[%clk 0:02:59]}  Be7 {[%clk 0:03:00]} 6. O-O {[%clk 0:02:59]}  O-O {[%clk 0:03:00]} 7. Nc3 {[%clk 0:02:59]}  Na6 {[%clk 0:03:00]} 8. Bg5 {[%clk 0:02:56]}  Ne4 {[%clk 0:02:40]} 9. Bxe7 {[%clk 0:02:56]}  Qxe7 {[%clk 0:02:39]} 10. Nxe4 {[%clk 0:02:55]}  Bxe4 {[%clk 0:02:40]} 11. Qd2 {[%clk 0:02:51]}  c5 {[%clk 0:02:37]} 12. Rfd1 {[%clk 0:02:49]}  Rfd8 {[%clk 0:02:33]} 13. b3 {[%clk 0:02:45]}  Rac8 {[%clk 0:02:31]} 14. dxc5 {[%clk 0:02:38]}  Qxc5 {[%clk 0:02:24]} 15. Qd6 {[%clk 0:02:35]}  Qxd6 {[%clk 0:02:22]} 16. Rxd6 {[%clk 0:02:35]}  Kf8 {[%clk 0:02:19]} 17. Rad1 {[%clk 0:02:33]}  Ke7 {[%clk 0:02:14]} 18. Ne5 {[%clk 0:02:31]}  Bxg2 {[%clk 0:02:14]} 19. Rxd7+ {[%clk 0:02:15]}  Rxd7 {[%clk 0:02:10]} 20. Rxd7+ {[%clk 0:02:16]}  Kf6 {[%clk 0:01:49]} 21. f4 {[%clk 0:02:15]}  Rc7 {[%clk 0:01:47]} 22. Rxc7 {[%clk 0:02:08]}  Nxc7 {[%clk 0:01:48]} 23. Kxg2 {[%clk 0:02:08]}  Ne8 {[%clk 0:01:23]} 24. Kf3 {[%clk 0:02:05]}  Nd6 {[%clk 0:01:24]} 25. e4 {[%clk 0:02:03]}  Nc8 {[%clk 0:01:20]} 26. Nc6 {[%clk 0:01:48]}  h5 {[%clk 0:01:12]} 27. b4 {[%clk 0:01:44]}  g5 {[%clk 0:01:06]} 28. e5+ {[%clk 0:01:33]}  Kf5 {[%clk 0:01:04]} 29. h3 {[%clk 0:01:32]}  gxf4 {[%clk 0:01:02]} 30. gxf4 {[%clk 0:01:32]}  Kg6 {[%clk 0:00:53]} 31. Ke4 {[%clk 0:01:26]}  f5+ {[%clk 0:00:48]} 32. Kd4 {[%clk 0:01:24]}  Kf7 {[%clk 0:00:47]} 33. a4 {[%clk 0:01:19]}  Ke8 {[%clk 0:00:46]} 34. c5 {[%clk 0:00:49]}  Kd7 {[%clk 0:00:46]} 35. b5 {[%clk 0:00:49]}  Kc7 {[%clk 0:00:40]} 36. Kc4 {[%clk 0:00:47]}  Kd7 {[%clk 0:00:36]} 37. a5 {[%clk 0:00:36]}  bxa5 {[%clk 0:00:36]} 38. Nxa5 {[%clk 0:00:28]}  Ne7 {[%clk 0:00:34]} 39. b6 {[%clk 0:00:23]}  axb6 {[%clk 0:00:34]} 40. cxb6 {[%clk 0:00:24]}  Nd5 {[%clk 0:00:32]} 41. Kb5 {[%clk 0:00:20]}  Kc8 {[%clk 0:00:16]} 42. Ka6 {[%clk 0:00:18]}  Kb8 {[%clk 0:00:14]} 43. Nc6+ {[%clk 0:00:18]}  Kc8 {[%clk 0:00:14]} 44. b7+ {[%clk 0:00:18]} 1-0


[Site "https://www.chess.com"]